bitfinex/quotes_ETHUSD_20260130
["timestamp","ask_amount","ask_price","bid_price","bid_amount"]
[1769787327758,12.00881206,2732.5,2729.7,0.01475579]
[1769787328084,2.487051,2732.1,2729.7,0.01475579]
[1769787328385,0.1024,2731.7,2729.8,0.01475579]
[1769787328602,2.671595,2731.6,2729.2,0.01475579]
[1769787328896,0.769,2731.5,2729.8,0.01475579]
[1769787329191,5.28695782,2732.6,2729.6,0.01475579]
[1769787329192,0.1024,2731.9,2729.9,0.01475579]
[1769787329395,0.1024,2731.7,2730.1,0.01475579]
[1769787329605,0.1024,2731.7,2729.6,0.01475579]
[1769787329606,2.14653,2732.4,2730.2,0.01475579]
[1769787329893,0.1024,2732.2,2730.4,0.01475579]
[1769787330097,0.1024,2732.2,2730.2,0.01475579]
[1769787330271,3.426032,2732.1,2730.0,0.01475579]
[1769787330465,0.769,2732.0,2729.8,0.01475579]
[1769787330668,0.93051638,2733.0,2730.5,0.01475579]
[1769787330969,0.001,2733.0,2731.3,0.01475579]
[1769787331159,0.001,2733.0,2731.1,0.01475579]
[1769787331359,0.77,2733.0,2731.4,0.01475579]
[1769787331564,2.086963,2732.9,2730.9,0.01475579]
[1769787331912,0.1024,2732.7,2730.6,0.01475579]
[1769787332098,0.769,2732.6,2730.8,0.01475579]
[1769787332407,0.01475579,2732.9,2730.3,0.93040043]
[1769787332605,0.29557715,2733.8,2731.8,11.68591414]
[1769787332781,0.0848947,2733.9,2732.5,0.01475579]
[1769787332980,0.0848947,2733.9,2731.9,1.17006699]
[1769787333201,0.0848947,2733.9,2732.0,0.01475579]
[1769787333382,0.0848947,2733.9,2731.8,0.2335703]
[1769787333383,0.0848947,2733.9,2732.6,0.01475579]
[1769787333696,0.001,2734.4,2733.1,0.01475579]
[1769787333895,0.001,2735.0,2733.1,0.01475579]
[1769787333896,0.0192386,2735.5,2734.3,0.01475579]
[1769787334097,0.0192386,2735.5,2734.7,0.01475579]
[1769787334308,22.91845,2737.4,2734.9,0.01475579]
[1769787334607,10.167644,2737.2,2734.8,0.01475579]
[1769787334785,11.96296465,2737.8,2735.2,0.01475579]
[1769787334984,0.01475579,2738.1,2735.2,0.01475579]
[1769787335179,0.00209661,2738.3,2736.5,0.01475579]
[1769787335370,5.148884,2738.2,2736.8,0.01475579]
[1769787335573,0.01475579,2737.4,2734.7,0.01475579]
[1769787335819,12.52391012,2738.1,2736.2,0.01475579]
[1769787335820,0.51509806,2738.1,2736.2,0.01475579]
[1769787336001,0.00209661,2738.3,2737.0,0.01475579]
[1769787336217,0.01475579,2739.3,2736.7,11.68591414]
[1769787336508,0.768,2739.3,2736.7,11.68591414]
[1769787336712,15.157123,2739.3,2736.7,11.68591414]
[1769787336883,0.01475579,2739.5,2736.9,0.2335703]
[1769787336884,1.60726809,2739.2,2736.9,0.2335703]
[1769787337082,5.041748,2739.3,2736.9,0.01475579]
[1769787337295,0.0848947,2739.6,2737.5,0.01475579]
[1769787337513,0.0848947,2739.6,2737.7,0.01475579]
[1769787338232,0.0848947,2739.6,2737.8,0.2335703]
[1769787338518,0.01475579,2740.5,2737.7,0.01475579]
[1769787338519,0.28512894,2741.5,2740.0,0.01475579]
[1769787338737,8.143997,2742.0,2739.6,0.2335703]
[1769787339027,4.366764,2742.1,2739.3,0.01475579]
[1769787339176,0.1906356,2742.5,2739.3,0.01475579]
[1769787339177,4.7037,2742.7,2740.3,0.01475579]
[1769787339375,0.56299461,2742.6,2740.4,0.01475579]
[1769787339627,0.01475579,2742.8,2740.5,0.3911995]
[1769787339917,0.01475579,2742.4,2739.8,0.01475579]
[1769787340078,0.01475579,2743.3,2740.4,11.47872354]
[1769787340382,0.01475579,2742.7,2740.4,11.46396775]
[1769787340584,0.01475579,2742.4,2740.4,11.46396775]
[1769787340910,0.01475579,2742.8,2740.6,11.46396775]
[1769787341071,0.01475579,2742.8,2739.8,11.23039745]
[1769787341072,0.01475579,2742.1,2739.8,11.23039745]
[1769787341278,0.01475579,2741.7,2739.9,0.2335703]
[1769787341510,2.150841,2741.8,2738.9,0.01475579]
[1769787341511,0.1024,2741.8,2738.9,11.23039745]
[1769787341682,0.1024,2741.8,2738.0,0.01475579]
[1769787341683,0.01475579,2740.1,2738.0,11.99739745]
[1769787341912,0.01475579,2740.5,2738.0,11.99739745]
[1769787342224,0.01475579,2741.2,2738.7,0.01475579]
[1769787342391,0.01475579,2741.4,2738.9,0.01475579]
[1769787342392,0.1024,2741.4,2738.9,0.01475579]
[1769787342744,0.28341799,2741.3,2738.8,0.01475579]
[1769787342896,0.78175579,2741.4,2739.1,0.01475579]
[1769787343228,0.01475579,2741.3,2738.4,0.01475579]
[1769787343448,11.86038366,2743.2,2739.7,0.01475579]
[1769787343734,6.273057,2742.7,2739.9,0.01475579]
[1769787344038,3.460607,2744.1,2741.3,0.01475579]
[1769787344190,0.92557153,2744.8,2742.1,0.01475579]
[1769787344530,0.1024,2744.1,2741.6,0.01475579]
[1769787344726,2.78196038,2744.3,2741.7,0.01475579]
[1769787344893,2.78196038,2744.3,2741.7,0.24832609]
[1769787344894,0.01475579,2744.1,2741.7,0.24832609]
[1769787345093,2.400841,2743.8,2741.3,0.01475579]
[1769787345429,0.01475579,2743.4,2741.5,11.23039745]
[1769787345645,0.01475579,2743.7,2742.1,3.912915]
[1769787345842,0.01475579,2743.3,2742.1,3.912915]
[1769787346131,0.01475579,2743.7,2740.6,11.23039745]
[1769787346132,0.01475579,2742.8,2740.6,11.23039745]
[1769787346427,0.01475579,2741.9,2739.9,0.1024]
[1769787346746,0.01475579,2741.3,2740.2,3.912915]
[1769787346940,0.01475579,2740.9,2740.0,3.912915]
[1769787347143,0.01475579,2740.5,2738.7,11.23039745]
[1769787347316,0.01475579,2740.9,2739.3,0.91262792]
[1769787347516,0.01475579,2740.5,2739.4,3.198359]
[1769787347732,0.01475579,2741.0,2739.8,3.198359]
[1769787347908,0.01475579,2740.8,2739.4,0.41110132]
[1769787348109,0.01475579,2740.6,2739.5,3.198359]
[1769787348443,0.01475579,2741.1,2739.8,3.198359]
[1769787348604,0.1024,2741.9,2739.8,0.91247395]
[1769787348808,0.01475579,2740.9,2738.9,3.65098398]
[1769787349046,0.11715579,2741.7,2738.9,3.65098398]
[1769787349047,0.01475579,2741.7,2739.8,3.198359]
[1769787349233,0.01475579,2741.1,2739.8,3.198359]
[1769787349607,0.01475579,2741.1,2739.3,3.198359]
[1769787349608,0.01475579,2740.5,2739.3,3.198359]
[1769787349812,0.01475579,2740.5,2738.7,3.65123833]
[1769787349813,0.01475579,2740.5,2739.2,3.198359]
[1769787350049,0.01475579,2740.7,2739.2,3.198359]
[1769787350548,0.01475579,2740.5,2739.2,3.198359]
[1769787350749,0.01475579,2740.3,2738.7,3.198359]
[1769787350913,0.01475579,2739.9,2738.7,3.5181949]
[1769787351114,0.01475579,2740.1,2738.1,3.65211507]
[1769787351416,0.01475579,2741.2,2739.2,0.91266942]
[1769787351752,0.01475579,2741.1,2739.6,3.198359]
[1769787351922,0.01475579,2740.7,2738.4,0.01475579]
[1769787352121,0.01475579,2740.8,2739.2,0.91266476]
[1769787352445,0.01475579,2740.9,2738.5,1.12451532]
[1769787352609,0.01475579,2740.5,2738.7,3.198359]
[1769787352814,0.01475579,2740.5,2737.9,0.91310841]
[1769787352815,0.01475579,2740.1,2737.9,0.91310841]
[1769787353041,0.01475579,2740.1,2737.7,3.198359]
[1769787353042,0.01475579,2739.5,2737.7,3.198359]
[1769787353245,0.01475579,2739.5,2737.8,0.3198359]
[1769787353457,0.01475579,2739.2,2737.7,3.198359]
[1769787353670,0.766,2739.1,2737.5,4.11158002]
[1769787353846,0.01475579,2739.0,2737.8,3.198359]
[1769787354045,0.01475579,2738.6,2736.6,11.23039745]
[1769787354373,0.01475579,2739.1,2737.8,3.198359]
[1769787354517,0.01475579,2738.7,2737.4,3.198359]
[1769787354848,0.01475579,2739.1,2737.8,3.198359]
[1769787354849,0.01475579,2738.8,2737.8,3.198359]
[1769787355016,0.01475579,2739.0,2737.8,0.91313011]
[1769787355219,0.01475579,2739.8,2737.8,0.91313011]
[1769787355417,0.01475579,2740.9,2739.2,3.198359]
[1769787355418,0.01475579,2740.5,2739.2,3.198359]
[1769787355618,0.01475579,2740.9,2739.2,3.198359]
[1769787355845,0.01475579,2741.5,2740.0,3.198359]
[1769787356150,0.01475579,2741.8,2739.2,0.3198359]
[1769787356151,0.01475579,2741.6,2740.4,3.198359]
[1769787356352,0.01475579,2741.8,2740.4,3.198359]
[1769787356517,0.01475579,2742.3,2740.6,0.91219122]
[1769787356518,0.01475579,2742.1,2740.6,0.91219122]
[1769787356716,0.01475579,2742.1,2739.5,11.23039745]
[1769787356717,0.01475579,2741.5,2739.5,11.23039745]
[1769787357049,0.01475579,2741.2,2740.0,3.198359]
[1769787357247,0.01475579,2741.0,2739.7,3.198359]
[1769787357565,0.01475579,2740.9,2739.4,3.198359]
[1769787357852,0.01475579,2740.9,2739.2,0.3198359]
[1769787357853,0.01475579,2740.5,2739.2,3.5181949]
[1769787358029,0.01475579,2740.3,2739.2,3.198359]
[1769787358232,0.01475579,2740.8,2739.4,3.198359]
[1769787358450,0.01475579,2740.6,2739.4,3.198359]
[1769787358665,0.01475579,2740.6,2737.9,11.23039745]
[1769787358666,0.01475579,2740.2,2739.2,3.198359]
[1769787358956,0.01475579,2740.6,2739.3,3.198359]
[1769787359252,0.01475579,2740.3,2739.1,3.198359]
[1769787359558,0.01475579,2740.8,2738.1,3.75451545]
[1769787359559,0.01475579,2740.8,2739.4,3.198359]
[1769787359756,0.01475579,2740.6,2739.4,4.11096133]
[1769787359943,0.01475579,2740.6,2738.1,0.1024]
[1769787359944,0.01475579,2740.9,2738.7,0.91281342]
[1769787360118,0.01475579,2741.5,2739.7,3.148359]
[1769787360448,0.01475579,2741.5,2738.7,3.65128153]
[1769787360449,3.66114284,2742.5,2738.7,3.65128153]
[1769787360450,10.94903925,2743.4,2740.7,3.148359]
[1769787360753,2.256442,2743.2,2741.2,3.148359]
[1769787360954,0.01475579,2742.3,2740.8,0.3148359]
[1769787361152,0.01475579,2742.3,2740.0,0.001]
[1769787361153,0.01475579,2741.4,2740.0,0.001]
[1769787361354,0.01475579,2741.0,2740.0,0.001]
[1769787361532,0.01475579,2740.6,2738.3,3.65185633]
[1769787361736,0.01475579,2740.4,2738.4,1.58099848]
[1769787361974,0.01475579,2739.8,2738.4,1.58099848]
[1769787362283,0.01475579,2740.4,2738.2,0.91298044]
[1769787362478,0.01475579,2741.2,2738.4,0.01475579]
[1769787362638,0.01475579,2740.1,2737.5,11.23039745]
[1769787362839,0.01475579,2740.1,2736.3,6.46239226]
[1769787362840,0.01475579,2739.2,2736.3,0.01475579]
[1769787363034,0.01475579,2739.0,2736.3,11.24515324]
[1769787363256,0.01475579,2739.4,2737.0,0.01475579]
[1769787363435,0.01475579,2739.5,2736.9,0.01475579]
[1769787363640,0.01475579,2739.6,2737.3,3.65321749]
[1769787363877,0.01475579,2739.4,2737.4,0.36532175]
[1769787364168,0.01475579,2738.2,2735.6,11.24515324]
[1769787364369,10.96379504,2739.2,2735.6,11.24515324]
[1769787364370,0.01475579,2738.6,2736.2,11.23039745]
[1769787364545,0.01475579,2739.1,2736.3,0.9136425]
[1769787364746,0.01475579,2738.3,2736.3,11.99539745]
[1769787364947,0.01475579,2737.5,2736.4,1.19953975]
[1769787365163,0.01475579,2737.3,2735.7,0.91381323]
[1769787365364,0.01475579,2737.3,2735.2,0.765]
[1769787365365,0.01475579,2736.9,2735.2,0.765]
[1769787365545,0.01475579,2737.8,2735.7,0.91384239]
[1769787365746,0.01475579,2737.7,2735.5,3.65557657]
[1769787365958,0.01475579,2737.5,2735.9,0.91374995]
[1769787366176,0.01475579,2737.9,2736.2,0.91367254]
[1769787366493,0.01475579,2738.5,2736.2,0.91367254]
[1769787366652,0.01475579,2738.8,2736.4,0.01475579]
[1769787366833,0.01475579,2738.8,2736.3,0.45683761]
[1769787366834,0.01475579,2738.2,2736.3,0.45683761]
[1769787367250,0.01475579,2738.8,2736.3,0.45683761]
[1769787367481,0.01475579,2737.7,2736.0,0.91371941]
[1769787367681,0.01475579,2738.1,2736.0,0.91371941]
[1769787367868,0.01475579,2738.3,2736.0,0.91371941]
[1769787367869,0.01475579,2737.8,2736.0,0.91371941]
[1769787368197,0.01475579,2737.6,2736.0,0.91371941]
[1769787368388,0.01475579,2737.5,2735.8,3.65523098]
[1769787368688,0.01475579,2737.7,2735.9,0.3655231]
[1769787368995,0.01475579,2738.0,2735.9,0.3655231]
[1769787368996,0.01475579,2737.6,2735.9,0.91375923]
[1769787369301,0.01475579,2737.9,2735.9,0.91375945]
[1769787369466,0.01475579,2737.3,2735.3,0.002]
[1769787369665,0.01475579,2737.5,2735.3,0.002]
[1769787369666,0.01475579,2737.2,2735.3,0.002]
[1769787369890,0.01475579,2737.0,2735.6,0.91386952]
[1769787370087,0.01475579,2737.9,2735.9,0.91377357]
[1769787370409,0.78075579,2738.7,2736.0,0.45690006]
[1769787370690,0.01475579,2737.9,2736.1,0.91370929]
[1769787370869,0.01475579,2738.2,2736.1,0.91370929]
[1769787371065,0.01475579,2738.7,2736.1,0.91370929]
[1769787371266,0.01475579,2738.1,2736.1,0.91370929]
[1769787371465,0.01475579,2738.1,2736.2,0.50254465]
[1769787371668,0.01475579,2738.9,2736.2,0.50254465]
[1769787371669,0.01475579,2741.0,2737.8,0.01475579]
[1769787371868,0.01475579,2740.5,2737.7,0.01475579]
[1769787372087,0.01475579,2740.3,2737.9,0.01475579]
[1769787372268,0.01475579,2740.5,2737.9,0.01475579]
[1769787372476,0.01475579,2740.0,2737.6,11.74074777]
[1769787372675,0.01475579,2740.2,2737.8,0.91314193]
[1769787372903,0.01475579,2740.5,2737.9,0.01475579]
[1769787373117,0.01475579,2741.0,2738.3,10.98950356]
[1769787373297,0.01475579,2740.8,2738.5,0.01475579]
[1769787373604,0.01475579,2740.4,2738.3,10.97474777]
[1769787373814,0.01475579,2741.3,2738.3,10.97474777]
[1769787373815,0.001,2740.1,2738.4,1.09747478]
[1769787374301,0.001,2740.1,2738.4,1.11223057]
[1769787374503,0.001,2740.1,2738.6,0.01475579]
[1769787374703,0.01475579,2742.0,2739.0,10.98950356]
[1769787374903,6.46239226,2742.8,2738.9,0.9127752]
[1769787374904,0.01475579,2741.9,2739.2,10.97474777]
[1769787375104,0.22574288,2741.9,2739.5,0.01475579]
[1769787375304,0.01475579,2741.5,2739.3,1.10771478]
[1769787375604,0.01475579,2741.5,2739.1,0.01475579]
[1769787375806,0.01475579,2742.8,2739.8,0.01475579]
[1769787375975,0.01475579,2742.8,2739.6,1.87955307]
[1769787375976,0.01475579,2741.6,2739.6,0.766]
[1769787376376,0.01475579,2741.8,2739.6,0.766]
[1769787376711,0.01475579,2741.2,2738.6,0.01475579]
[1769787377002,0.01475579,2741.0,2738.7,0.3666341]
[1769787377203,0.01475579,2741.3,2738.8,0.01475579]
[1769787377577,0.01475579,2741.2,2738.6,0.78075579]
[1769787377779,0.01475579,2741.0,2738.7,11.07714777]
[1769787378107,0.01475579,2742.0,2738.6,0.78075579]
[1769787378108,0.01475579,2744.8,2741.1,10.97474777]
[1769787378273,0.01475579,2744.6,2742.0,0.01475579]
[1769787378476,0.01475579,2744.6,2741.2,0.765]
[1769787378477,0.01475579,2743.7,2741.2,0.765]
[1769787378684,0.01475579,2743.8,2741.3,0.91197606]
[1769787378923,0.01475579,2742.9,2740.7,3.64858447]
[1769787379126,0.1024,2743.4,2741.2,0.91199722]
[1769787379278,0.01475579,2743.1,2741.0,0.91206172]
[1769787379476,0.01475579,2742.9,2740.9,0.91208866]
[1769787379794,0.01475579,2742.6,2740.2,0.765]
[1769787379982,0.01475579,2743.2,2740.3,0.01475579]
[1769787380290,0.01475579,2743.2,2741.2,0.91200103]
[1769787380494,0.01475579,2742.8,2741.3,0.45600384]
[1769787380684,0.01475579,2742.8,2740.4,0.91227558]
[1769787380891,0.01475579,2743.4,2740.6,0.01475579]
[1769787381077,0.01475579,2743.0,2740.4,0.91227558]
[1769787381276,0.01475579,2742.8,2740.4,0.91227558]
[1769787381475,0.01475579,2742.6,2740.2,0.765]
[1769787381705,0.01475579,2742.1,2740.3,0.91230157]
[1769787381906,0.01475579,2742.2,2740.3,0.91230157]
[1769787382076,0.01475579,2742.2,2740.3,0.91227975]
[1769787382282,0.01475579,2742.4,2740.3,0.91227975]
[1769787382610,0.01475579,2742.3,2740.4,0.53265434]
[1769787382814,0.01475579,2741.7,2739.6,0.91251485]
[1769787383107,0.01475579,2741.3,2738.9,0.91275483]
[1769787383311,0.01475579,2741.0,2738.8,1.67780624]
[1769787383499,0.01475579,2740.9,2738.6,3.65147388]
[1769787383702,0.01475579,2740.9,2738.8,0.91280651]
[1769787383883,0.01475579,2740.9,2739.0,0.91273996]
[1769787384211,0.01475579,2741.1,2738.4,1.09747478]
[1769787384212,0.01475579,2740.6,2738.4,1.09747478]
[1769787384387,0.01475579,2740.6,2737.9,0.765]
[1769787384388,0.01475579,2740.2,2738.2,0.91299414]
[1769787384588,0.01475579,2739.9,2737.2,10.98950356]
[1769787384830,0.01475579,2739.8,2737.6,0.91320864]
[1769787385111,0.01475579,2740.0,2737.4,0.01475579]
[1769787385299,0.01475579,2740.0,2737.2,10.98950356]
[1769787385300,0.01475579,2739.5,2737.2,0.91332158]
[1769787385614,0.01475579,2739.1,2736.8,1.67844273]
[1769787385825,0.01475579,2739.3,2737.5,0.91323538]
[1769787385992,0.01475579,2739.4,2736.8,0.765]
[1769787386197,0.01475579,2739.2,2737.3,0.91328882]
[1769787386415,0.01475579,2739.0,2737.3,0.91330668]
[1769787386711,0.01475579,2739.0,2736.5,0.91357573]
[1769787386712,0.01475579,2738.8,2736.5,0.91357573]
[1769787386904,0.01475579,2739.2,2736.6,1.56921843]
[1769787387105,0.01475579,2739.2,2736.8,0.01475579]
[1769787387281,0.01475579,2739.8,2737.2,0.01475579]
[1769787387482,0.01475579,2740.1,2737.4,0.01475579]
[1769787387685,0.01475579,2739.5,2737.3,0.765]
[1769787387894,1.16057802,2740.5,2737.3,0.765]
[1769787387895,0.01475579,2740.4,2737.8,10.98950356]
[1769787388095,0.01475579,2740.5,2738.0,0.01475579]
[1769787388316,0.01475579,2740.2,2737.9,1.09895036]
[1769787388618,0.01475579,2740.7,2738.1,0.01475579]
[1769787388786,0.01475579,2741.2,2738.1,0.01475579]
[1769787388787,0.01475579,2741.7,2738.9,0.2335703]
[1769787388986,0.01475579,2741.3,2739.0,0.765]
[1769787389216,0.01475579,2741.0,2739.0,0.765]
[1769787389529,0.01475579,2741.0,2738.0,10.97474777]
[1769787389530,0.01475579,2740.3,2738.0,10.97474777]
[1769787389688,0.01475579,2740.5,2738.2,0.91300854]
[1769787389892,0.01475579,2740.6,2738.2,11.88775631]
[1769787390203,0.01475579,2740.9,2738.3,10.98950356]
[1769787390406,0.01475579,2740.3,2737.9,1.09895036]
[1769787390614,0.01475579,2740.6,2738.1,0.91301694]
[1769787390821,0.01475579,2740.8,2738.1,0.92777273]
[1769787390995,0.01475579,2740.3,2738.1,0.91301694]
[1769787391321,0.01475579,2740.7,2738.2,10.97474777]
[1769787391530,0.01475579,2741.5,2738.7,10.98950356]
[1769787391823,0.01475579,2741.7,2738.9,10.97474777]
[1769787391824,0.01475579,2741.2,2738.9,10.97474777]
[1769787392037,14.17464971,2742.2,2738.8,1.86395036]
[1769787392038,0.01475579,2741.9,2739.0,11.22307386]
[1769787392329,0.01475579,2741.9,2738.8,1.87870615]
[1769787392330,0.01475579,2741.1,2738.8,1.86395036]
[1769787392629,0.01475579,2740.9,2738.8,0.765]
[1769787392828,0.01475579,2741.6,2738.9,11.90227876]
[1769787393020,0.01475579,2741.0,2738.9,11.88752297]
[1769787393218,0.01475579,2741.0,2738.8,0.765]
[1769787393219,0.01475579,2740.8,2738.8,0.765]
[1769787393431,0.01475579,2740.3,2738.1,10.97474777]
[1769787393596,0.01475579,2740.3,2738.2,1.09747478]
[1769787393800,0.01475579,2740.0,2738.2,1.09747478]
[1769787394023,0.01475579,2739.8,2737.9,0.765]
[1769787394192,0.01475579,2739.6,2737.4,0.91324646]
[1769787394491,0.01475579,2739.3,2737.1,0.765]
[1769787394693,0.01475579,2739.2,2737.2,0.9133421]
[1769787395324,0.01475579,2739.2,2737.1,1.6783515]
[1769787395532,0.01475579,2739.4,2737.2,0.53319592]
[1769787395705,0.01475579,2739.2,2737.2,0.53319592]
[1769787396230,0.01475579,2738.8,2737.2,0.53319592]
[1769787396526,0.01475579,2738.2,2736.4,0.002]
[1769787396725,0.01475579,2738.0,2736.4,0.002]
[1769787397222,0.01475579,2738.4,2736.4,0.002]
[1769787397423,0.01475579,2738.8,2736.8,10.75638301]
[1769787397629,0.91226098,2740.5,2738.2,0.01475579]
[1769787397796,0.01475579,2739.6,2737.6,0.01475579]
[1769787397997,0.01475579,2739.3,2736.5,0.77975579]
[1769787398216,0.01475579,2739.0,2736.9,1.7161079]
[1769787398528,0.01475579,2739.2,2736.6,0.01475579]
[1769787398726,0.01475579,2738.9,2736.7,0.91350897]
[1769787398930,0.01475579,2739.2,2736.7,0.91350897]
[1769787399148,0.01475579,2739.4,2737.0,0.01475579]
[1769787399310,0.01475579,2740.9,2737.7,10.75638301]
[1769787399633,0.01475579,2740.0,2737.8,1.07711388]
[1769787399940,0.01475579,2739.4,2737.8,1.07711388]
[1769787400110,0.01475579,2739.0,2737.1,0.002]
[1769787400306,0.01475579,2739.4,2737.1,0.002]
[1769787400711,0.01475579,2739.9,2737.3,0.91330873]
[1769787401037,0.01475579,2739.9,2737.4,0.01475579]
[1769787401038,0.01475579,2739.7,2737.4,0.01475579]
[1769787401337,0.01475579,2739.9,2737.4,0.77975579]
[1769787401542,0.01475579,2738.8,2737.4,1.61174383]
[1769787401835,0.01475579,2739.0,2737.1,0.002]
[1769787401836,0.01475579,2739.0,2737.2,0.91333626]
[1769787402033,0.01475579,2739.4,2737.2,0.91333626]
[1769787402240,0.01475579,2739.2,2737.2,0.91333626]
[1769787402407,0.01475579,2739.6,2737.2,0.91333626]
[1769787402603,0.01475579,2739.3,2737.2,0.91333626]
[1769787402804,0.01475579,2739.1,2737.3,0.45687047]
[1769787403010,0.01475579,2739.1,2737.1,0.002]
[1769787403011,0.01475579,2738.9,2737.1,0.91535751]
[1769787403315,0.01475579,2738.9,2737.1,0.002]
[1769787403316,0.01475579,2738.3,2737.1,0.002]
[1769787403517,0.01475579,2738.5,2737.1,0.002]
[1769787403717,0.01475579,2738.3,2737.1,0.002]
[1769787404105,0.01475579,2737.9,2737.1,0.002]
[1769787404437,0.01475579,2737.9,2736.9,0.002]
[1769787404438,0.01475579,2737.7,2736.9,0.002]
[1769787404933,0.01475579,2737.5,2736.9,0.002]
[1769787405133,0.01475579,2737.4,2736.9,0.002]
[1769787405341,0.01475579,2737.2,2736.4,0.002]
[1769787405519,0.01475579,2736.7,2735.3,0.002]
[1769787405836,0.01475579,2736.9,2735.3,0.002]
[1769787406048,0.01475579,2736.8,2735.3,0.002]
[1769787406261,0.01475579,2736.6,2735.3,0.002]
[1769787406459,0.01475579,2736.8,2735.3,0.002]
[1769787406753,0.01475579,2736.6,2735.3,0.002]
[1769787407110,0.01475579,2737.5,2735.3,0.002]
[1769787407315,0.01475579,2737.8,2735.3,0.002]
[1769787407316,0.01475579,2737.0,2735.3,0.002]
[1769787407517,0.01475579,2737.2,2735.3,0.002]
[1769787407720,0.01475579,2737.0,2735.3,0.002]
[1769787408008,0.01475579,2736.9,2735.3,0.002]
[1769787408231,0.01475579,2736.7,2735.3,0.002]
[1769787408440,10.09508326,2735.6,2733.5,0.01475579]
[1769787408642,0.01475579,2735.2,2732.7,10.75638301]
[1769787408961,0.01475579,2735.4,2731.9,8.29308675]
[1769787408962,0.01475579,2734.6,2732.9,10.75638301]
[1769787409253,0.01475579,2734.7,2732.9,10.75638301]
[1769787409419,0.01475579,2735.4,2732.9,10.75638301]
[1769787409420,0.01475579,2734.9,2732.9,10.75638301]
[1769787409623,0.01475579,2734.7,2732.9,10.75638301]
[1769787409814,0.01475579,2735.3,2733.0,12.00010257]
[1769787410013,0.01475579,2735.1,2733.0,12.00010257]
[1769787410241,0.01475579,2735.3,2733.0,12.00010257]
[1769787410414,0.01475579,2735.5,2733.0,12.00010257]
[1769787410615,0.01475579,2735.3,2733.0,12.00010257]
[1769787410840,0.01475579,2735.4,2733.3,11.67102831]
[1769787411145,0.01475579,2735.4,2733.2,3.6585812]
[1769787411146,0.01475579,2735.1,2733.2,0.91465541]
[1769787411350,0.01475579,2735.1,2733.1,0.91469402]
[1769787411351,0.01475579,2734.9,2733.1,0.91469402]
[1769787411528,0.01475579,2734.5,2732.9,0.91477394]
[1769787411722,0.01475579,2734.6,2733.2,0.9146717]
[1769787412123,0.01475579,2734.5,2733.2,0.9146717]
[1769787412447,0.01475579,2734.5,2733.0,0.914724]
[1769787412647,0.01475579,2733.9,2732.5,0.91490913]
[1769787412947,0.01475579,2733.8,2732.2,0.91501354]
[1769787413258,0.01475579,2734.1,2732.3,0.53410916]
[1769787413449,0.91388229,2735.6,2732.3,11.29049217]
[1769787413626,10.09508326,2735.7,2732.5,10.75638301]
[1769787413828,0.01475579,2734.9,2732.5,10.75638301]
[1769787414028,0.01475579,2734.3,2732.5,10.75638301]
[1769787414351,0.01475579,2734.0,2732.6,1.0756383]
[1769787414546,0.01475579,2734.4,2732.6,1.0756383]
[1769787414847,0.001,2734.5,2732.7,0.91484612]
[1769787415049,0.01475579,2734.0,2732.6,0.91487948]
[1769787415247,0.01475579,2734.2,2732.5,0.002]
[1769787415248,0.01475579,2733.9,2732.5,0.002]
[1769787415426,0.01475579,2734.4,2732.5,3.6615364]
[1769787415634,0.01475579,2734.2,2732.6,1.281031]
[1769787415832,0.01475579,2734.1,2732.6,1.281031]
[1769787416143,0.01475579,2734.4,2732.6,1.281031]
[1769787416347,0.01575579,2734.5,2732.6,1.281031]
[1769787416550,0.01475579,2734.3,2732.6,1.281031]
[1769787416749,0.01475579,2734.3,2732.7,0.49425674]
[1769787417067,0.001,2734.5,2732.8,0.91481264]
[1769787417273,0.01475579,2734.4,2732.8,0.91481264]
[1769787417572,0.001,2734.5,2732.8,12.43719565]
[1769787417869,0.01475579,2735.4,2733.1,10.85878301]
[1769787418170,0.01475579,2735.7,2733.4,10.98995331]
[1769787418369,0.01475579,2735.3,2733.4,10.75638301]
[1769787418562,0.01475579,2735.2,2733.4,10.75638301]
[1769787418759,0.01475579,2735.2,2733.5,1.0756383]
[1769787418760,0.01475579,2735.0,2733.5,1.0756383]
[1769787418962,0.01475579,2734.8,2733.5,1.0756383]
[1769787419166,0.01475579,2735.2,2733.5,1.99018361]
[1769787419353,0.01475579,2735.0,2733.5,1.99018361]
[1769787419557,0.01475579,2734.6,2733.5,1.0756383]
[1769787419758,0.01475579,2734.6,2733.2,0.91466038]
[1769787419759,0.01475579,2734.4,2733.2,0.91465884]
[1769787419987,0.01475579,2734.4,2733.3,0.91464497]
[1769787420171,0.01475579,2734.4,2733.2,3.65871481]
[1769787420367,0.01475579,2734.3,2732.8,0.766]
[1769787420681,0.01475579,2735.2,2732.8,0.766]
[1769787420682,0.01475579,2735.1,2733.5,0.91456506]
[1769787420868,0.01475579,2735.7,2733.6,11.21367087]
[1769787421193,0.01475579,2736.1,2733.7,12.43689447]
[1769787421362,0.01475579,2735.6,2733.7,12.43689447]
[1769787421558,0.01475579,2735.4,2733.7,1.68051146]
[1769787421876,0.01475579,2735.0,2733.6,11.67091206]
[1769787422099,0.01475579,2736.1,2734.0,0.2335703]
[1769787422258,0.01475579,2736.8,2734.3,10.98995331]
[1769787422600,0.01475579,2737.1,2734.7,10.75638301]
[1769787422759,0.01475579,2736.4,2734.7,10.75638301]
[1769787422944,0.01475579,2736.5,2734.8,0.91414363]
[1769787423150,0.01475579,2736.3,2734.9,2.29971012]
[1769787423580,0.01475579,2737.1,2734.9,0.767]
[1769787423785,0.01475579,2736.9,2734.9,11.52338301]
[1769787424195,0.01475579,2736.3,2734.9,0.767]
[1769787424403,0.01475579,2735.7,2734.5,0.91423629]
[1769787424597,0.01475579,2735.1,2733.7,1.53292155]
[1769787424897,0.01475579,2734.9,2733.5,0.91457837]
[1769787425079,0.01475579,2735.3,2733.5,0.91457837]
[1769787425260,0.01475579,2735.2,2733.5,0.91457837]
[1769787425466,0.01475579,2735.3,2733.6,10.75638301]
[1769787425684,0.01475579,2734.9,2733.5,0.91457837]
[1769787425887,0.01475579,2735.1,2733.4,0.766]
[1769787426064,0.01475579,2734.7,2733.4,1.68060569]
[1769787426260,0.01475579,2734.3,2732.7,0.49425674]
[1769787426516,0.01475579,2734.2,2732.7,0.766]
[1769787426806,0.01475579,2733.6,2732.7,0.766]
[1769787427010,0.01475579,2733.4,2732.5,0.002]
[1769787427364,0.01475579,2733.5,2732.5,0.002]
[1769787427566,0.01475579,2733.3,2733.1,0.002]
[1769787427871,0.01475579,2733.3,2731.1,3.66141445]
[1769787428227,0.01475579,2733.5,2731.1,0.1024]
[1769787428501,0.01475579,2733.4,2732.1,0.91504238]
[1769787428703,0.01475579,2733.2,2731.9,3.6604491]
[1769787428919,0.01475579,2733.4,2731.8,0.002]
[1769787429073,0.01475579,2733.6,2731.8,0.002]